bitfinex/quotes_BTCUSD_20250808
["timestamp","ask_amount","ask_price","bid_price","bid_amount"]
[1754616023765,0.00747418,116860.0,116850.0,0.77515171]
[1754616024750,0.1137,116890.0,116880.0,0.2]
[1754616024956,0.07258762,116910.0,116900.0,0.17108639]
[1754616025160,0.07258762,116910.0,116900.0,0.33468639]
[1754616025362,0.07272989,116910.0,116900.0,0.33468639]
[1754616025599,0.87292199,116910.0,116900.0,0.33456639]
[1754616025826,0.87292199,116910.0,116900.0,0.17108639]
[1754616026047,0.89037101,116910.0,116900.0,0.17108639]
[1754616026670,0.89037101,116910.0,116900.0,0.17208639]
[1754616026868,0.89037101,116910.0,116900.0,0.17108639]
[1754616027283,0.82089339,116910.0,116900.0,0.17408639]
[1754616027853,0.80344437,116910.0,116900.0,0.17408639]
[1754616028059,0.82089339,116910.0,116900.0,0.17408639]
[1754616034454,0.82089339,116910.0,116900.0,0.003]
[1754616034655,0.9077555,116910.0,116900.0,0.003]
[1754616035037,1.9342476,116910.0,116900.0,0.003]
[1754616035238,1.2477555,116910.0,116900.0,0.003]
[1754616035656,1.9342476,116910.0,116900.0,0.003]
[1754616036062,1.93400754,116910.0,116900.0,0.003]
[1754616036660,1.24763547,116910.0,116900.0,0.003]
[1754616037455,1.24763547,116910.0,116900.0,0.17408639]
[1754616037657,1.1337334,116910.0,116900.0,0.17408639]
[1754616039367,1.1337334,116910.0,116900.0,0.003]
[1754616039580,0.9730134,116910.0,116900.0,0.17408639]
[1754616039795,0.9730134,116910.0,116900.0,0.16488985]
[1754616039796,0.88615129,116910.0,116900.0,0.16488985]
[1754616039985,1.04643129,116910.0,116900.0,0.15569241]
[1754616040152,0.88615129,116910.0,116900.0,0.15569241]
[1754616040362,0.00148387,116910.0,116900.0,0.33425694]
[1754616040560,0.23476913,116970.0,116930.0,0.17959345]
[1754616040740,0.41175,116940.0,116930.0,0.19799798]
[1754616040943,0.41175,116950.0,116940.0,0.17102787]
[1754616041145,0.41175,116950.0,116940.0,0.1894324]
[1754616041351,0.17666403,117000.0,116950.0,0.17956391]
[1754616041604,0.17118844,117000.0,116990.0,0.4289313]
[1754616041751,0.49908642,117000.0,116990.0,0.44733583]
[1754616041937,0.89926519,117000.0,116990.0,0.44733583]
[1754616042137,1.04851496,117000.0,116990.0,0.45531867]
[1754616042332,1.06907398,117000.0,116990.0,0.45531867]
[1754616042618,1.12262559,117000.0,116990.0,0.45531867]
[1754616042809,0.6886,117000.0,116990.0,0.44733583]
[1754616043048,1.10035,117000.0,116990.0,0.44733583]
[1754616043265,1.11779902,117000.0,116990.0,0.44733583]
[1754616043476,1.44035,117000.0,116990.0,0.44733583]
[1754616043714,1.11779902,117000.0,116990.0,0.44733583]
[1754616043933,1.10035,117000.0,116990.0,0.44733583]
[1754616044348,1.18721211,117000.0,116990.0,0.44733583]
[1754616044561,1.15870279,117000.0,116990.0,0.44733583]
[1754616044769,0.58711279,117000.0,116990.0,0.44733583]
[1754616044994,0.50025068,117000.0,116990.0,0.61829061]
[1754616045182,0.11127842,117040.0,116990.0,0.64219192]
[1754616045439,0.55886184,117050.0,116990.0,0.64219192]
[1754616045667,0.08686211,117030.0,116990.0,0.65369965]
[1754616045897,0.40748075,117010.0,117000.0,0.17898577]
[1754616046113,0.40603958,117010.0,117000.0,0.42541486]
[1754616046347,0.13422046,117020.0,117010.0,0.01744902]
[1754616046597,0.65622258,117020.0,117010.0,0.05975486]
[1754616047026,0.49690258,117020.0,117010.0,0.05975486]
[1754616047232,0.52520165,117020.0,117010.0,0.04382041]
[1754616047459,0.36140041,117020.0,117010.0,0.02637139]
[1754616047674,0.65789211,117020.0,117010.0,0.04482041]
[1754616047890,0.57103,117020.0,117010.0,0.47369701]
[1754616048103,0.35966679,117020.0,117010.0,0.4299313]
[1754616048317,0.41175,117030.0,117010.0,1.10840313]
[1754616048544,0.41175,117030.0,117020.0,0.34213638]
[1754616048754,0.39171976,117030.0,117020.0,0.33544219]
[1754616048970,0.57055,117050.0,117020.0,0.45730219]
[1754616049177,0.41175,117040.0,117020.0,0.49424219]
[1754616049388,0.22269645,117050.0,117020.0,0.66811135]
[1754616049577,0.2466,117050.0,117030.0,0.17089565]
[1754616049815,0.2466,117050.0,117030.0,0.02041053]
[1754616050035,0.0878,117050.0,117030.0,0.02041053]
[1754616050246,0.05276582,117050.0,117040.0,0.01744902]
[1754616050491,0.55390186,117060.0,117040.0,0.01744902]
[1754616050818,0.15848,117060.0,117040.0,0.15848]
[1754616051030,0.57019,117070.0,117040.0,0.32935974]
[1754616051416,0.51952372,117080.0,117040.0,0.15848]
[1754616051620,0.00014218,117080.0,117070.0,0.45590313]
[1754616051828,0.16109129,117080.0,117070.0,0.45590313]
[1754616052030,0.57167745,117080.0,117070.0,0.44565035]
[1754616052235,0.49382027,117080.0,117070.0,0.44565035]
[1754616052443,0.58068238,117080.0,117070.0,0.44565035]
[1754616052651,0.64731703,117080.0,117070.0,0.44565035]
[1754616052858,0.64731703,117080.0,117070.0,0.46309937]
[1754616052859,0.98731703,117080.0,117070.0,0.46309937]
[1754616053279,0.91032597,117080.0,117070.0,0.46309937]
[1754616053488,0.24490211,117080.0,117070.0,0.46309937]
[1754616053702,0.41058616,117100.0,117080.0,0.01744902]
[1754616053876,0.41325504,117090.0,117080.0,0.01744902]
[1754616054124,0.41058616,117090.0,117080.0,0.01744902]
[1754616054300,0.33838175,117090.0,117080.0,0.01744902]
[1754616054548,0.49634175,117090.0,117080.0,0.01744902]
[1754616054755,0.49616708,117090.0,117080.0,0.01744902]
[1754616055179,0.15796,117090.0,117080.0,0.01744902]
[1754616055405,0.15768,117090.0,117080.0,0.01744902]
[1754616055625,0.82806919,117090.0,117080.0,0.01744902]
[1754616055833,0.82593704,117090.0,117080.0,0.01744902]
[1754616056059,0.82455865,117090.0,117080.0,0.01744902]
[1754616056265,0.84685865,117090.0,117070.0,0.44565035]
[1754616056472,0.03,117090.0,117080.0,0.01744902]
[1754616056674,0.76903493,117090.0,117080.0,0.46309937]
[1754616056887,0.85589704,117090.0,117080.0,0.46309937]
[1754616057104,1.19034217,117090.0,117080.0,0.46309937]
[1754616057317,0.62558068,117090.0,117080.0,0.44565035]
[1754616057535,0.41519088,117090.0,117080.0,0.44565035]
[1754616057765,0.82577704,117090.0,117080.0,0.44565035]
[1754616057991,1.280606,117090.0,117080.0,0.43030368]
[1754616058203,0.81466522,117090.0,117080.0,0.43030368]
[1754616058415,0.81466522,117090.0,117080.0,0.4477527]
[1754616058624,0.65496827,117090.0,117080.0,0.4477527]
[1754616058867,0.82577704,117090.0,117080.0,0.4477527]
[1754616059526,0.83077704,117090.0,117080.0,0.4477527]
[1754616059737,0.57102134,117090.0,117080.0,0.43030368]
[1754616060191,0.57102134,117090.0,117080.0,0.47388433]
[1754616060391,0.45990459,117090.0,117080.0,0.47388433]
[1754616060624,0.08657437,117100.0,117090.0,0.01744902]
[1754616060828,0.58369437,117100.0,117090.0,0.04358065]
[1754616061033,0.24369437,117100.0,117090.0,0.04358065]
[1754616061241,0.1656597,117100.0,117090.0,0.04358065]
[1754616061469,0.59447528,117100.0,117050.0,0.13466689]
[1754616061675,0.58593558,117100.0,117060.0,0.41747389]
[1754616061908,0.58593558,117100.0,117060.0,0.07738988]
[1754616061909,0.41058616,117080.0,117060.0,0.07738988]
[1754616062110,0.00213215,117070.0,117060.0,0.06713474]
[1754616062318,0.00213215,117070.0,117060.0,0.05922248]
[1754616062319,0.02036157,117070.0,117060.0,0.05922248]
[1754616062527,0.00213215,117070.0,117060.0,0.0774552]
[1754616062786,0.65496827,117070.0,117060.0,0.00990056]
[1754616063006,0.49744827,117070.0,117050.0,0.15741115]
[1754616063219,0.08686211,117060.0,117050.0,0.12963622]
[1754616063428,0.59147752,117060.0,117050.0,0.05742139]
[1754616063849,0.59147752,117060.0,117050.0,0.07487041]
[1754616064056,0.59147752,117060.0,117050.0,0.01744902]
[1754616064268,0.59147752,117060.0,117050.0,0.50361898]
[1754616064480,0.57323841,117060.0,117050.0,0.92302906]
[1754616064689,0.41058616,117070.0,117050.0,0.92302906]
[1754616064904,0.24398211,117070.0,117050.0,0.76574906]
[1754616065113,0.65456827,117070.0,117050.0,0.41186126]
[1754616065343,0.65316827,117070.0,117050.0,0.30716735]
[1754616065557,0.58223076,117070.0,117050.0,0.30716735]
[1754616065769,0.07477082,117070.0,117050.0,0.31316735]
[1754616066194,0.07477082,117070.0,117050.0,0.46400735]
[1754616066410,0.07477082,117070.0,117050.0,0.40923871]
[1754616066686,0.07473082,117070.0,117050.0,0.41323871]
[1754616066923,0.41058616,117060.0,117050.0,0.25639871]
[1754616067143,0.49744827,117060.0,117050.0,0.25639871]
[1754616067584,0.08686211,117060.0,117050.0,0.25639871]
[1754616067810,0.49744827,117060.0,117050.0,0.25639871]
[1754616068240,0.49744827,117060.0,117050.0,0.25239871]
[1754616068445,0.49744827,117060.0,117050.0,0.26984773]
[1754616068653,0.56284827,117060.0,117050.0,0.60984773]
[1754616068867,0.20313763,117070.0,117060.0,0.01744902]
[1754616069070,0.61372379,117070.0,117060.0,0.01744902]
[1754616069278,0.17934987,117090.0,117050.0,0.62901986]
[1754616069500,0.1564,117080.0,117060.0,0.34]
[1754616069709,0.1564,117080.0,117050.0,0.6786566]
[1754616069710,0.56698616,117080.0,117050.0,0.6786566]
[1754616069913,0.41058616,117070.0,117050.0,0.5567966]
[1754616070134,0.56690616,117060.0,117050.0,0.5527966]
[1754616070351,0.5648434,117060.0,117040.0,0.15636]
[1754616070563,0.01799913,117030.0,117010.0,0.34024053]
[1754616070774,0.03634426,117030.0,117020.0,0.00014229]
[1754616070987,0.03634426,117030.0,117020.0,0.15646229]
[1754616071199,0.44693042,117030.0,117020.0,7.701e-05]
[1754616071423,0.53379253,117030.0,117020.0,1.919e-05]
[1754616071623,0.53675253,117030.0,116970.0,0.50572978]
[1754616071895,0.41058616,117010.0,116950.0,0.06404753]
[1754616072112,0.42337376,117010.0,116950.0,0.47463369]
[1754616072356,0.51023587,117010.0,116970.0,0.34]
[1754616072568,0.40408668,117020.0,116990.0,0.42885721]
[1754616072569,0.49744827,117000.0,116990.0,0.42885721]
[1754616072773,0.49744827,117000.0,116990.0,0.38973682]
[1754616072774,0.08682211,117000.0,116990.0,0.38973682]
[1754616073003,0.09280497,117000.0,116990.0,0.26819348]
[1754616073231,0.41058616,117010.0,116990.0,0.26819348]
[1754616073449,0.50342681,117010.0,116990.0,0.21261253]
[1754616073663,0.0416775,117010.0,117000.0,0.01744902]
[1754616073872,0.34597854,117010.0,117000.0,0.12146]
[1754616074078,0.34597854,117010.0,116990.0,0.32906611]
[1754616074287,0.34597854,117010.0,116990.0,0.20760611]
[1754616074502,0.34597854,117010.0,117000.0,0.12447]
[1754616074945,0.56658616,117020.0,117000.0,0.13981935]
[1754616075151,0.41058616,117010.0,117000.0,0.00446478]
[1754616075364,0.41058616,117010.0,116990.0,0.13210565]
[1754616075576,0.61104039,117020.0,116990.0,0.1996637]
[1754616075795,0.20045423,117020.0,117000.0,0.12447]
[1754616076003,0.61104039,117020.0,117000.0,0.07135493]
[1754616076212,0.03598378,117010.0,117000.0,0.15584]
[1754616076425,0.03598378,117010.0,117000.0,0.14773439]
[1754616076629,0.65328827,117020.0,116990.0,0.21561279]
[1754616076871,0.41058616,117010.0,116990.0,0.21561279]
[1754616077123,0.75058616,117000.0,116990.0,0.17549136]
[1754616077361,0.34,117000.0,116980.0,0.15873]
[1754616077575,0.34,117000.0,116980.0,0.24258211]
[1754616077782,0.10913035,117000.0,116990.0,0.00301]
[1754616078005,0.15572,117020.0,116990.0,0.1306742]
[1754616078212,0.01744902,117010.0,116990.0,0.2521342]
[1754616078394,0.15572,117020.0,117000.0,0.12146]
[1754616078649,0.01744902,117010.0,117000.0,0.12146]
[1754616079079,0.01744902,117020.0,117000.0,0.2049583]
[1754616079458,0.01744902,117020.0,117000.0,0.0493183]
[1754616079665,0.57851581,117030.0,117000.0,0.0493183]
[1754616079867,0.75359616,117020.0,116990.0,0.23448617]
[1754616080080,0.34,117010.0,117000.0,0.001]
[1754616080284,0.49552,117010.0,116980.0,0.43069277]
[1754616080506,0.48869312,116990.0,116980.0,0.67299488]
[1754616080716,0.34,116980.0,116960.0,0.33454941]
[1754616080936,0.01832599,116980.0,116970.0,0.21525878]
[1754616081153,0.35832599,116980.0,116970.0,0.29663754]
[1754616081364,0.26939521,116980.0,116970.0,0.2212188]
[1754616081569,0.2621268,116980.0,116970.0,0.22111117]
[1754616081779,0.2621268,116980.0,116940.0,0.3745441]
[1754616081984,0.26260044,116980.0,116950.0,0.18180945]
[1754616082190,0.26260044,116980.0,116950.0,0.11967791]
[1754616082398,0.26260044,116980.0,116920.0,0.230835]
[1754616082615,0.26574044,116980.0,116930.0,0.56654039]
[1754616082825,0.15516,116970.0,116940.0,0.15516]
[1754616083034,0.15516,116970.0,116940.0,0.15524]
[1754616083247,0.27534364,116980.0,116940.0,0.56662039]
[1754616083459,0.49885364,116980.0,116940.0,0.56662039]
[1754616083673,0.35744902,116970.0,116950.0,0.08686211]
[1754616083882,0.34,116970.0,116960.0,0.08784596]
[1754616084091,0.34,116970.0,116960.0,0.5232825]
[1754616084294,0.34,116970.0,116960.0,0.6785625]
[1754616084456,0.84600385,116970.0,116960.0,0.60630598]
[1754616084859,0.84600385,116970.0,116960.0,0.19793559]
[1754616085083,0.84600385,116970.0,116950.0,0.41138039]
[1754616085287,0.82855483,116970.0,116960.0,0.41138039]
[1754616085518,0.84600385,116970.0,116960.0,0.15532]
[1754616085720,0.84600385,116970.0,116950.0,0.27310652]
[1754616085925,0.84600385,116970.0,116960.0,0.4043637]
[1754616086123,0.82855483,116970.0,116960.0,0.4043637]
[1754616086329,0.84600385,116970.0,116960.0,0.001]
[1754616086678,0.01744902,116960.0,116950.0,0.15528]
[1754616086888,0.00596609,116960.0,116950.0,0.15528]
[1754616087094,0.02341511,116960.0,116950.0,0.14972169]
[1754616087311,0.02341511,116960.0,116950.0,0.12289013]
[1754616087929,0.02341511,116960.0,116950.0,0.11888177]
[1754616088141,0.02341511,116960.0,116950.0,0.03871476]
[1754616088348,0.03294987,116960.0,116950.0,0.02759823]
[1754616088782,0.01550085,116960.0,116940.0,0.56159538]
[1754616088999,0.01550085,116960.0,116940.0,0.31667284]
[1754616089226,0.03294987,116960.0,116940.0,0.27658807]
[1754616089435,0.01744902,116950.0,116940.0,0.22100385]
[1754616089642,0.02341511,116950.0,116940.0,0.22100385]
[1754616089872,0.02341511,116950.0,116940.0,0.56622039]
[1754616090105,0.02341511,116950.0,116940.0,0.06248785]
[1754616090313,0.02341511,116950.0,116940.0,0.02357919]
[1754616090738,0.02341511,116950.0,116940.0,0.15456]
[1754616090961,0.36341511,116950.0,116930.0,0.56594039]
[1754616091169,0.36341511,116950.0,116930.0,0.49378506]
[1754616091373,0.34596609,116950.0,116930.0,0.66482675]
[1754616091574,0.34596609,116950.0,116930.0,0.49378506]
[1754616091828,0.77368467,116950.0,116930.0,0.49601687]
[1754616092085,0.43368467,116950.0,116940.0,1.0396159]
[1754616092333,0.00047364,116980.0,116970.0,0.098739]
[1754616092548,0.00047364,116980.0,116970.0,0.71004749]
[1754616092781,0.00047364,116980.0,116970.0,0.69957649]
[1754616093036,0.00047364,116980.0,116970.0,0.6555033]
[1754616093248,0.34047364,116980.0,116970.0,0.73292919]
[1754616093454,0.84736516,116980.0,116970.0,0.70302927]
[1754616093880,0.84736516,116980.0,116970.0,0.00526607]
[1754616094088,0.86481418,116980.0,116970.0,0.10210615]
[1754616094296,0.86481418,116980.0,116960.0,0.32519847]
[1754616094512,0.86481418,116980.0,116960.0,0.179865]
[1754616094729,0.01744902,116970.0,116950.0,0.15428]
[1754616094938,0.34,116960.0,116940.0,0.73668698]
[1754616095140,0.35523669,116960.0,116940.0,0.74846114]
[1754616095348,0.35523669,116960.0,116940.0,0.63731091]
[1754616095562,0.01833669,116960.0,116940.0,0.46628432]
[1754616095804,0.01833669,116960.0,116940.0,0.63731154]
[1754616096038,0.01833669,116960.0,116950.0,1.08063614]
[1754616096715,0.01833669,116960.0,116950.0,0.4982425]
[1754616096947,0.01833669,116960.0,116950.0,0.62552184]
[1754616097175,0.44682507,116960.0,116950.0,0.60206762]
[1754616097418,0.44682507,116960.0,116950.0,0.5432518]
[1754616097623,0.44682507,116960.0,116950.0,0.71426505]
[1754616097826,0.44682507,116960.0,116950.0,0.64264071]
[1754616097957,0.44682507,116960.0,116950.0,0.60657869]
[1754616098169,0.44782507,116960.0,116950.0,0.75500357]
[1754616098370,0.44782507,116960.0,116950.0,0.95500357]
[1754616098916,0.44782507,116960.0,116950.0,1.21690357]
[1754616099240,0.01933669,116960.0,116950.0,1.18912313]
[1754616099821,0.01933669,116960.0,116950.0,0.42201553]
[1754616100005,0.01933669,116960.0,116950.0,0.22201553]
[1754616100208,0.01933669,116960.0,116950.0,0.1699244]
[1754616100410,0.01933669,116960.0,116950.0,0.04069925]
[1754616100565,0.01933669,116960.0,116950.0,0.2117125]
[1754616100771,0.01933669,116960.0,116940.0,0.58812218]
[1754616100973,0.01933669,116960.0,116950.0,0.17101325]
[1754616101226,0.01933669,116960.0,116950.0,0.11149038]
[1754616101558,0.01744902,116950.0,116940.0,0.53255323]
[1754616101750,0.01744902,116950.0,116940.0,0.43292596]
[1754616101881,0.01744902,116950.0,116940.0,0.61211096]
[1754616102086,0.01744902,116970.0,116950.0,0.17100338]
[1754616102306,0.01744902,116970.0,116960.0,0.17099863]
[1754616102509,0.01744902,116970.0,116960.0,0.41335822]
[1754616102861,0.00047364,116980.0,116970.0,0.16096643]
[1754616103063,0.00047364,116980.0,116970.0,0.23777113]
[1754616103402,0.00047364,116980.0,116970.0,0.08686211]
[1754616103619,0.00047364,116980.0,116970.0,0.20131211]
[1754616103822,0.36093266,116980.0,116970.0,0.11445]
[1754616104449,0.02093266,116980.0,116970.0,0.11445]
[1754616104643,0.01792266,116980.0,116970.0,0.28543401]
[1754616105270,0.01792266,116980.0,116970.0,0.28843401]
[1754616105694,0.01792266,116980.0,116970.0,0.37529612]
[1754616107684,0.00047364,116980.0,116970.0,0.37229612]
[1754616107895,0.00047364,116980.0,116970.0,0.57229612]
[1754616108515,0.00047364,116980.0,116970.0,0.57429612]
[1754616108727,0.00047364,116980.0,116970.0,0.37229612]
[1754616108944,0.00047364,116980.0,116970.0,0.20131211]
[1754616109145,0.00047364,116980.0,116970.0,0.37229612]
[1754616110318,0.00047364,116980.0,116970.0,0.57229612]
[1754616110723,0.35344728,117000.0,116980.0,0.17095713]
[1754616110930,0.35645728,117000.0,116990.0,0.08686211]
[1754616111392,0.35645728,117000.0,116990.0,0.37226689]
[1754616111393,0.35344728,117000.0,116990.0,0.37226689]
[1754616111731,0.85869843,117000.0,116990.0,0.37226689]
[1754616112003,0.85969843,117000.0,116990.0,0.37226689]
[1754616112380,0.85869843,117000.0,116990.0,0.37226689]
[1754616112547,0.85969843,117000.0,116990.0,0.37226689]
[1754616112951,0.01344728,117000.0,116990.0,0.37226689]
[1754616113170,0.35744902,117010.0,117000.0,0.17094017]
[1754616113372,0.35744902,117010.0,117000.0,0.28539017]
[1754616113990,0.86270017,117010.0,117000.0,0.11445]
[1754616114500,0.86270017,117010.0,117000.0,0.28752692]
[1754616114653,0.86270017,117010.0,117000.0,0.11445]
[1754616114871,0.01744902,117000.0,116990.0,0.25781689]
[1754616115070,0.01744902,117000.0,116990.0,0.37226689]
[1754616116369,0.01844902,117000.0,116990.0,0.37226689]
[1754616117543,0.52270017,117000.0,116990.0,0.37226689]
[1754616117749,0.01744902,117000.0,116990.0,0.37526689]
[1754616118860,0.42839904,117000.0,116990.0,0.37526689]
[1754616119322,0.42839904,117000.0,116990.0,0.37526689]
[1754616119748,0.01744902,117000.0,116990.0,0.37526689]
[1754616120092,0.43140904,117000.0,116990.0,0.08986211]
[1754616120325,0.96344906,117000.0,116990.0,0.003]
[1754616120495,1.45436906,117000.0,116990.0,0.003]
[1754616121088,1.47936906,117000.0,116980.0,0.00014202]
[1754616121337,0.62197666,116990.0,116980.0,0.00014202]
[1754616121696,0.73383877,116990.0,116980.0,0.00014202]
[1754616121908,0.66436115,116990.0,116980.0,0.00014202]
[1754616122560,0.81544115,116990.0,116980.0,0.00014202]
[1754616122754,0.90994442,116990.0,116980.0,0.00014202]
[1754616122979,0.82408231,116990.0,116980.0,0.00014202]
[1754616124551,0.82308231,116990.0,116980.0,0.00014202]
[1754616124768,0.79808231,116990.0,116980.0,0.00014202]
[1754616124982,0.82608231,116990.0,116980.0,0.00014202]
[1754616125216,0.82308231,116990.0,116980.0,0.00014202]
[1754616125646,0.31762902,116990.0,116980.0,0.00014202]
[1754616125857,0.82508231,116990.0,116980.0,0.00014202]
[1754616126076,0.14354902,116990.0,116980.0,0.00014202]
[1754616126323,0.51008902,116990.0,116980.0,0.00014202]
[1754616126564,0.63418902,116990.0,116980.0,0.00014202]
[1754616126742,1.13964231,116990.0,116980.0,0.00014202]
[1754616128343,1.13764231,116990.0,116980.0,0.00014202]
[1754616128717,0.50808902,116990.0,116980.0,0.00114202]
[1754616129074,0.50808902,116990.0,116980.0,0.11559202]
[1754616129488,0.50808902,116990.0,116980.0,0.00114202]
[1754616129681,0.35744902,116990.0,116980.0,0.28656141]
[1754616131271,0.35744902,116990.0,116980.0,0.24606141]
[1754616131485,0.35744902,116990.0,116980.0,0.26465]
[1754616131615,0.35744902,116990.0,116980.0,0.11445]
[1754616131832,0.35744902,116990.0,116980.0,0.001]
[1754616132262,0.98700231,116990.0,116980.0,0.001]
[1754616133156,0.98700231,116990.0,116970.0,0.32098225]
[1754616133490,0.48154902,116990.0,116970.0,0.52229436]
[1754616134576,0.48154902,116990.0,116980.0,0.17096939]
[1754616134894,0.36045902,116990.0,116980.0,0.17096939]
[1754616135106,0.35744902,116990.0,116980.0,0.17096939]
[1754616135656,0.35744902,116990.0,116970.0,0.52229436]
[1754616136276,0.48167902,116990.0,116970.0,0.52229436]
[1754616136882,0.48667902,116990.0,116970.0,0.52229436]
[1754616138347,0.48659355,116990.0,116970.0,0.52229436]
[1754616138553,0.48659355,116990.0,116970.0,0.35131211]
[1754616138756,0.11589567,116980.0,116970.0,0.13795465]
[1754616138928,0.00562923,116980.0,116970.0,0.07584603]
[1754616139138,0.00594131,116980.0,116970.0,0.06559925]
[1754616139343,0.50545329,116990.0,116970.0,0.26353758]
[1754616139548,0.65441329,117000.0,116980.0,0.35744902]
[1754616139742,0.63389683,117000.0,116980.0,0.35744902]
[1754616139957,0.63389683,117000.0,116990.0,0.01744902]
[1754616139958,0.50545329,117000.0,116990.0,0.01744902]
[1754616140157,0.43009112,117010.0,116990.0,0.01744902]
[1754616140364,0.50545329,117030.0,117010.0,0.03993866]
[1754616140592,0.08686211,117030.0,117020.0,0.35744902]
[1754616140804,0.64301662,117040.0,117020.0,0.38037675]
[1754616141006,0.11550343,117030.0,117020.0,0.39782577]
[1754616141425,0.00301,117030.0,117020.0,0.39782577]
[1754616141662,0.72987873,117040.0,117020.0,0.38740113]
[1754616141663,0.73329788,117040.0,117020.0,0.38740113]
[1754616141880,0.7414354,117040.0,117020.0,0.38740113]
[1754616142079,0.7414354,117040.0,117020.0,0.04740113]
[1754616142291,0.7414354,117040.0,117030.0,0.01744902]
[1754616142543,0.54958342,117040.0,117030.0,0.04740113]
[1754616142692,0.61172994,117040.0,117030.0,0.04740113]
[1754616142910,0.55617879,117040.0,117030.0,0.04740113]
[1754616143294,0.59858293,117040.0,117030.0,0.01744902]
[1754616143719,0.44548287,117100.0,117030.0,0.50632902]
[1754616143720,0.06408038,117050.0,117030.0,0.50632902]
[1754616143924,0.00301,117050.0,117030.0,0.62986902]
[1754616144404,0.50846329,117050.0,117030.0,0.62986902]
[1754616144574,0.56022329,117050.0,117030.0,0.16632902]
[1754616144789,0.41076627,117040.0,117030.0,0.16632902]
[1754616145424,0.05477,117050.0,117030.0,0.16632902]
[1754616145613,0.00301,117050.0,117030.0,0.46076386]
[1754616145834,0.20357,117060.0,117030.0,0.46076386]
[1754616146111,0.20371221,117060.0,117030.0,0.46076386]
[1754616146294,0.20371221,117060.0,117030.0,0.29286902]
[1754616146496,0.20371221,117060.0,117030.0,0.46376517]
[1754616146940,0.20371221,117060.0,117030.0,0.29286902]
[1754616147122,0.20371221,117060.0,117030.0,0.29486902]
[1754616147563,0.21279797,117060.0,117030.0,0.29486902]
[1754616147767,0.21279797,117060.0,117030.0,0.29786902]
[1754616147987,0.62356424,117060.0,117030.0,0.46876516]
[1754616148416,0.62356424,117060.0,117040.0,0.12354]
[1754616148663,0.15195221,117060.0,117050.0,0.01744902]
[1754616149264,0.00315221,117060.0,117050.0,0.01744902]
[1754616149630,0.34315221,117060.0,117050.0,0.01744902]
[1754616149835,0.34014221,117060.0,117050.0,0.16676902]
[1754616150073,0.34014221,117060.0,117050.0,0.29030902]
[1754616151026,0.34014221,117060.0,117050.0,0.16676902]
[1754616151287,0.34014221,117060.0,117050.0,0.01844902]
[1754616151791,0.00014221,117060.0,117050.0,0.14198902]
[1754616151993,0.00014221,117060.0,117050.0,0.14498902]
[1754616152396,0.00014221,117060.0,117050.0,0.14198902]
[1754616153594,0.00014221,117060.0,117050.0,0.31585617]
[1754616153797,0.00014221,117060.0,117050.0,0.81348455]
[1754616153994,0.00014221,117060.0,117050.0,0.40271828]
[1754616154200,0.00014221,117060.0,117050.0,0.23185113]
[1754616154767,0.00014221,117060.0,117050.0,0.40171828]
[1754616155192,0.00014221,117060.0,117050.0,0.40271828]
[1754616155394,0.00014221,117060.0,117050.0,0.23085113]
[1754616155778,0.00014221,117060.0,117050.0,0.40571828]
[1754616156122,0.00014221,117060.0,117050.0,0.81648455]
[1754616156329,0.19964,117100.0,117070.0,0.01744902]
[1754616156330,0.16279221,117100.0,117070.0,0.01744902]
[1754616156661,0.00973432,117100.0,117090.0,0.01744902]
[1754616156919,0.01128432,117100.0,117090.0,0.28862902]
[1754616157051,0.00202384,117100.0,117090.0,0.28862902]
[1754616157726,0.00047384,117100.0,117090.0,0.29366902]
[1754616157937,0.00047384,117100.0,117090.0,0.29162902]
[1754616159400,0.41124011,117100.0,117090.0,0.01744902]
[1754616159617,0.41124011,117100.0,117090.0,0.16500902]
[1754616159822,0.46300011,117100.0,117080.0,0.14756]
[1754616160023,0.05320384,117100.0,117090.0,0.02144902]
[1754616160249,0.46397011,117100.0,117090.0,0.02144902]
[1754616160662,0.80397011,117100.0,117090.0,0.004]
[1754616160888,0.48006595,117100.0,117090.0,0.004]
[1754616161094,0.89083222,117100.0,117090.0,0.004]
[1754616161298,0.89083222,117100.0,117080.0,0.01744902]
[1754616161550,0.89083222,117100.0,117070.0,0.2711]
[1754616161702,0.47909595,117100.0,117080.0,0.01744902]
[1754616161918,0.34047384,117100.0,117090.0,0.001]
[1754616162082,0.34047384,117100.0,117080.0,0.14398902]
[1754616162275,0.75124011,117100.0,117080.0,0.14398902]
[1754616162477,0.39320384,117100.0,117080.0,0.01744902]
[1754616162700,0.05176,117090.0,117080.0,0.01744902]
[1754616162901,0.46252627,117090.0,117080.0,0.01744902]
[1754616163721,0.34144384,117100.0,117080.0,0.01744902]
[1754616163722,0.80397011,117100.0,117080.0,0.01744902]
[1754616163935,0.42733595,117100.0,117080.0,0.13054902]
[1754616164138,0.83810222,117100.0,117080.0,0.13054902]
[1754616164348,0.88986222,117100.0,117080.0,0.13054902]
[1754616164550,0.88986222,117100.0,117080.0,0.01744902]
[1754616164717,0.83810222,117100.0,117080.0,0.13367902]
[1754616164927,0.34047384,117100.0,117080.0,0.13567902]
[1754616165133,0.34047384,117100.0,117090.0,0.01744902]
[1754616165942,0.34047384,117100.0,117090.0,0.13054902]
[1754616166144,0.34047384,117100.0,117090.0,0.28119902]
[1754616166359,0.00047384,117100.0,117090.0,0.28119902]
[1754616166712,0.00047384,117100.0,117090.0,0.45200779]
[1754616167114,0.00047384,117100.0,117090.0,0.5388699]
[1754616167876,0.00047384,117100.0,117090.0,0.5398699]
[1754616168085,0.00047384,117100.0,117090.0,0.94963617]
[1754616168485,0.00047384,117100.0,117090.0,0.95363617]
[1754616168680,0.00047384,117100.0,117090.0,0.5428699]
[1754616169917,0.00047384,117100.0,117090.0,0.37206113]
[1754616170525,0.00047384,117100.0,117090.0,0.28206902]
[1754616171112,0.00047384,117100.0,117090.0,0.27806902]
[1754616171382,0.00047384,117100.0,117090.0,0.13054902]
[1754616171572,0.00047384,117100.0,117090.0,0.16692902]
[1754616171773,0.00047384,117100.0,117090.0,0.01944902]
[1754616171975,0.05223384,117100.0,117080.0,0.26058]
[1754616172206,0.46300011,117100.0,117080.0,0.14748]
[1754616172362,0.46252627,117090.0,117060.0,0.138743]
[1754616172572,0.46252627,117090.0,117060.0,0.26058]
[1754616172573,0.41076627,117080.0,117060.0,0.26058]
[1754616172782,0.46252627,117080.0,117060.0,0.14748]
[1754616172987,0.41076627,117070.0,117050.0,0.1131]
[1754616173184,0.46349627,117070.0,117050.0,0.173126]
[1754616174216,1.04379716,117080.0,117050.0,0.26371]
[1754616175333,1.04379716,117080.0,117050.0,0.26058]
[1754616175556,0.05176,117070.0,117050.0,0.14748]
[1754616176684,1.04379716,117080.0,117050.0,0.26058]
[1754616176903,1.04379716,117080.0,117050.0,0.26371]
[1754616177126,1.04282716,117080.0,117050.0,0.26371]
[1754616177341,0.63206089,117080.0,117050.0,0.26371]
[1754616177555,1.04282716,117080.0,117050.0,0.26371]
[1754616177992,1.03686838,117080.0,117050.0,0.26371]